[Event "Titled Tuesday Blitz February 22 Late 2022"]
[White "Wachinger, Guenther"]
[Black "Hakobyan, Aram"]
[WhiteFideId "4604261"]
[BlackFideId "13306677"]
[WhiteElo "2212"]
[BlackElo "2557"]
[Result "0-1"]
[Round "04"]
[TimeControl "180+1"]
[Date "2022.02.23"]
[WhiteClock "0:00:09"]
[BlackClock "0:00:16"]

1. e4 {[%clk 0:03:00]}  c5 {[%clk 0:02:59]} 2. Nf3 {[%clk 0:02:59]}  e6 {[%clk 0:02:59]} 3. d4 {[%clk 0:02:59]}  cxd4 {[%clk 0:03:00]} 4. Nxd4 {[%clk 0:02:59]}  a6 {[%clk 0:03:01]} 5. c4 {[%clk 0:02:56]}  Ne7 {[%clk 0:02:59]} 6. Nc3 {[%clk 0:02:54]}  Nbc6 {[%clk 0:02:58]} 7. Be3 {[%clk 0:02:50]}  Ng6 {[%clk 0:02:57]} 8. Be2 {[%clk 0:02:49]}  Qc7 {[%clk 0:02:56]} 9. Qd2 {[%clk 0:02:44]}  Be7 {[%clk 0:02:50]} 10. a3 {[%clk 0:02:44]}  O-O {[%clk 0:02:50]} 11. b4 {[%clk 0:02:43]}  d6 {[%clk 0:02:49]} 12. O-O {[%clk 0:02:41]}  Bd7 {[%clk 0:02:44]} 13. Rfc1 {[%clk 0:02:41]}  Nxd4 {[%clk 0:02:42]} 14. Bxd4 {[%clk 0:02:41]}  Rac8 {[%clk 0:02:42]} 15. Be3 {[%clk 0:02:37]}  Qb8 {[%clk 0:02:40]} 16. Rd1 {[%clk 0:02:36]}  Rfd8 {[%clk 0:02:40]} 17. Rac1 {[%clk 0:02:36]}  b5 {[%clk 0:02:31]} 18. cxb5 {[%clk 0:02:27]}  axb5 {[%clk 0:02:32]} 19. Qe1 {[%clk 0:02:24]}  Ne5 {[%clk 0:02:31]} 20. Bf4 {[%clk 0:02:10]}  Nc4 {[%clk 0:02:28]} 21. Bxc4 {[%clk 0:02:10]}  Rxc4 {[%clk 0:02:29]} 22. Rd3 {[%clk 0:02:08]}  Rdc8 {[%clk 0:02:26]} 23. Rcd1 {[%clk 0:02:09]}  e5 {[%clk 0:02:26]} 24. Nd5 {[%clk 0:02:00]}  Bf8 {[%clk 0:02:21]} 25. Be3 {[%clk 0:01:58]}  Rxe4 {[%clk 0:02:15]} 26. Qd2 {[%clk 0:01:51]}  Be6 {[%clk 0:02:07]} 27. f3 {[%clk 0:01:47]}  Rec4 {[%clk 0:02:06]} 28. Qe2 {[%clk 0:01:42]}  Rc2 {[%clk 0:02:06]} 29. R3d2 {[%clk 0:01:41]}  Rxd2 {[%clk 0:02:06]} 30. Rxd2 {[%clk 0:01:42]}  Qb7 {[%clk 0:02:05]} 31. Nb6 {[%clk 0:01:40]}  Rc1+ {[%clk 0:02:05]} 32. Kf2 {[%clk 0:01:41]}  Rc6 {[%clk 0:01:58]} 33. Qxb5 {[%clk 0:01:38]}  d5 {[%clk 0:01:55]} 34. Bc5 {[%clk 0:01:38]}  Bxc5+ {[%clk 0:01:41]} 35. bxc5 {[%clk 0:01:38]}  Qc7 {[%clk 0:01:41]} 36. Nxd5 {[%clk 0:01:35]}  Bxd5 {[%clk 0:01:22]} 37. Rxd5 {[%clk 0:01:36]}  g6 {[%clk 0:01:23]} 38. a4 {[%clk 0:01:34]}  e4 {[%clk 0:01:22]} 39. a5 {[%clk 0:01:30]}  Re6 {[%clk 0:01:20]} 40. Rd6 {[%clk 0:01:21]}  Re5 {[%clk 0:00:58]} 41. Qb6 {[%clk 0:01:16]}  Qe7 {[%clk 0:00:48]} 42. f4 {[%clk 0:00:32]}  Qh4+ {[%clk 0:00:42]} 43. Ke2 {[%clk 0:00:24]}  Qxf4 {[%clk 0:00:32]} 44. Qb8+ {[%clk 0:00:18]}  Kg7 {[%clk 0:00:30]} 45. Rd8 {[%clk 0:00:19]}  e3 {[%clk 0:00:23]} 46. Rg8+ {[%clk 0:00:17]}  Kh6 {[%clk 0:00:23]} 47. Qf8+ {[%clk 0:00:15]}  Kh5 {[%clk 0:00:24]} 48. g4+ {[%clk 0:00:11]}  Qxg4+ {[%clk 0:00:23]} 49. Kd3 {[%clk 0:00:11]}  Rd5+ {[%clk 0:00:19]} 50. Kc3 {[%clk 0:00:10]}  Qd4+ {[%clk 0:00:16]} 51. Kb3 {[%clk 0:00:10]}  Qd3+ {[%clk 0:00:16]} 52. Kb4 {[%clk 0:00:09]}  Rd4# {[%clk 0:00:16]} 0-1


[Site "https://www.chess.com"]

[Event "Titled Tuesday Blitz February 22 Late 2022"]
[White "Wieczorek, Oskar"]
[Black "Van den Dikkenberg, Erik"]
[WhiteFideId "1133950"]
[BlackFideId "1005880"]
[WhiteElo "2319"]
[BlackElo "2118"]
[Result "1-0"]
[Round "04"]
[TimeControl "180+1"]
[Date "2022.02.23"]
[WhiteClock "0:01:47"]
[BlackClock "0:00:56"]

1. e4 {[%clk 0:03:00]}  c5 {[%clk 0:02:41]} 2. Nf3 {[%clk 0:02:47]}  d6 {[%clk 0:02:41]} 3. d4 {[%clk 0:02:47]}  cxd4 {[%clk 0:02:41]} 4. Nxd4 {[%clk 0:02:48]}  Nf6 {[%clk 0:02:41]} 5. Nc3 {[%clk 0:02:48]}  a6 {[%clk 0:02:42]} 6. h4 {[%clk 0:02:48]}  e5 {[%clk 0:02:39]} 7. Nb3 {[%clk 0:02:49]}  Be6 {[%clk 0:02:39]} 8. f4 {[%clk 0:02:49]}  exf4 {[%clk 0:02:38]} 9. Bxf4 {[%clk 0:02:50]}  Nc6 {[%clk 0:02:36]} 10. Qd2 {[%clk 0:02:50]}  Be7 {[%clk 0:02:23]} 11. O-O-O {[%clk 0:02:50]}  O-O {[%clk 0:02:23]} 12. Bxd6 {[%clk 0:02:47]}  Bxd6 {[%clk 0:02:23]} 13. Qxd6 {[%clk 0:02:48]}  Qb6 {[%clk 0:02:21]} 14. Qc5 {[%clk 0:02:44]}  Qc7 {[%clk 0:02:14]} 15. Nd5 {[%clk 0:02:36]}  Bxd5 {[%clk 0:02:05]} 16. exd5 {[%clk 0:02:37]}  Qf4+ {[%clk 0:02:04]} 17. Kb1 {[%clk 0:02:35]}  Rad8 {[%clk 0:01:50]} 18. Bxa6 {[%clk 0:02:05]}  Ne4 {[%clk 0:01:09]} 19. Qb6 {[%clk 0:01:59]}  Ne5 {[%clk 0:01:03]} 20. Rhf1 {[%clk 0:01:49]}  Rxd5 {[%clk 0:00:56]} 21. Rxd5 {[%clk 0:01:47]} 1-0


[Site "https://www.chess.com"]

[Event "Titled Tuesday Blitz February 22 Late 2022"]
[White "Xiong, Jeffery"]
[Black "Pultinevicius, Paulius"]
[WhiteFideId "2047640"]
[BlackFideId "12809390"]
[WhiteElo "2727"]
[BlackElo "2413"]
[Result "0-1"]
[Round "04"]
[TimeControl "180+1"]
[Date "2022.02.22"]
[WhiteClock "0:00:25"]
[BlackClock "0:00:17"]

1. d4 {[%clk 0:03:00]}  Nf6 {[%clk 0:02:59]} 2. c4 {[%clk 0:03:01]}  g6 {[%clk 0:02:58]} 3. Nc3 {[%clk 0:03:01]}  d5 {[%clk 0:02:57]} 4. cxd5 {[%clk 0:03:00]}  Nxd5 {[%clk 0:02:58]} 5. e4 {[%clk 0:03:00]}  Nxc3 {[%clk 0:02:59]} 6. bxc3 {[%clk 0:03:01]}  Bg7 {[%clk 0:02:59]} 7. Nf3 {[%clk 0:03:02]}  c5 {[%clk 0:03:00]} 8. Rb1 {[%clk 0:03:02]}  cxd4 {[%clk 0:02:56]} 9. cxd4 {[%clk 0:03:03]}  O-O {[%clk 0:02:57]} 10. Be2 {[%clk 0:02:54]}  Qa5+ {[%clk 0:02:56]} 11. Bd2 {[%clk 0:02:55]}  Qxa2 {[%clk 0:02:55]} 12. O-O {[%clk 0:02:55]}  Bg4 {[%clk 0:02:52]} 13. Bg5 {[%clk 0:02:51]}  h6 {[%clk 0:02:47]} 14. Bh4 {[%clk 0:02:51]}  a5 {[%clk 0:02:33]} 15. Rxb7 {[%clk 0:02:43]}  Nc6 {[%clk 0:02:23]} 16. d5 {[%clk 0:02:43]}  Ne5 {[%clk 0:02:20]} 17. Bxe7 {[%clk 0:02:43]}  Rfe8 {[%clk 0:02:08]} 18. d6 {[%clk 0:02:36]}  a4 {[%clk 0:02:06]} 19. Re1 {[%clk 0:01:59]}  a3 {[%clk 0:01:59]} 20. Nxe5 {[%clk 0:01:43]}  Bxe2 {[%clk 0:01:58]} 21. Rxe2 {[%clk 0:01:44]}  Qxe2 {[%clk 0:01:57]} 22. Qxe2 {[%clk 0:01:45]}  a2 {[%clk 0:01:58]} 23. Qxa2 {[%clk 0:01:45]}  Rxa2 {[%clk 0:01:57]} 24. f4 {[%clk 0:01:46]}  Rc8 {[%clk 0:01:25]} 25. Nd3 {[%clk 0:01:05]}  Bd4+ {[%clk 0:00:24]} 26. Kf1 {[%clk 0:01:05]}  Rcc2 {[%clk 0:00:25]} 27. Bh4 {[%clk 0:01:06]}  Rxg2 {[%clk 0:00:16]} 28. Bf2 {[%clk 0:00:25]}  Rgxf2+ {[%clk 0:00:16]} 29. Nxf2 {[%clk 0:00:25]}  Rxf2+ {[%clk 0:00:17]} 30. Ke1 {[%clk 0:00:25]}  Rxf4 {[%clk 0:00:17]} 0-1


[Site "https://www.chess.com"]

[Event "Titled Tuesday Blitz February 22 Late 2022"]
[White "Yang, Kaiqi"]
[Black "Shirov, Alexei"]
[WhiteFideId "8604398"]
[BlackFideId "2209390"]
[WhiteElo "2373"]
[BlackElo "2645"]
[Result "1/2-1/2"]
[Round "04"]
[TimeControl "180+1"]
[Date "2022.02.23"]
[WhiteClock "0:00:06"]
[BlackClock "0:00:29"]

1. c4 {[%clk 0:03:00]}  c6 {[%clk 0:02:56]} 2. d4 {[%clk 0:02:58]}  d5 {[%clk 0:02:56]} 3. Nc3 {[%clk 0:02:58]}  Nf6 {[%clk 0:02:56]} 4. cxd5 {[%clk 0:02:58]}  cxd5 {[%clk 0:02:55]} 5. Bf4 {[%clk 0:02:59]}  Nc6 {[%clk 0:02:55]} 6. e3 {[%clk 0:02:59]}  Bg4 {[%clk 0:02:54]} 7. Qb3 {[%clk 0:02:59]}  Na5 {[%clk 0:02:52]} 8. Qa4+ {[%clk 0:02:59]}  Bd7 {[%clk 0:02:52]} 9. Qc2 {[%clk 0:02:59]}  Rc8 {[%clk 0:02:51]} 10. Bd3 {[%clk 0:02:59]}  b5 {[%clk 0:02:51]} 11. a3 {[%clk 0:02:53]}  e6 {[%clk 0:02:48]} 12. Nf3 {[%clk 0:02:53]}  Nc4 {[%clk 0:02:33]} 13. O-O {[%clk 0:02:44]}  a5 {[%clk 0:02:33]} 14. Qe2 {[%clk 0:02:28]}  b4 {[%clk 0:02:31]} 15. axb4 {[%clk 0:02:23]}  axb4 {[%clk 0:02:31]} 16. Na4 {[%clk 0:02:21]}  Be7 {[%clk 0:02:29]} 17. Ne5 {[%clk 0:02:15]}  Nxe5 {[%clk 0:02:27]} 18. Bxe5 {[%clk 0:02:13]}  O-O {[%clk 0:02:27]} 19. b3 {[%clk 0:02:05]}  Ne4 {[%clk 0:02:25]} 20. Bxe4 {[%clk 0:01:45]}  dxe4 {[%clk 0:02:24]} 21. h3 {[%clk 0:01:17]}  f6 {[%clk 0:02:19]} 22. Bg3 {[%clk 0:01:16]}  Bc6 {[%clk 0:02:19]} 23. Nc5 {[%clk 0:01:13]}  Bd5 {[%clk 0:02:18]} 24. Ra4 {[%clk 0:01:01]}  Bxc5 {[%clk 0:02:13]} 25. dxc5 {[%clk 0:01:00]}  Rxc5 {[%clk 0:02:13]} 26. Rxb4 {[%clk 0:00:59]}  Qe7 {[%clk 0:02:09]} 27. Rb6 {[%clk 0:00:53]}  Rc6 {[%clk 0:02:01]} 28. Rxc6 {[%clk 0:00:52]}  Bxc6 {[%clk 0:02:01]} 29. Rb1 {[%clk 0:00:30]}  Qb7 {[%clk 0:01:55]} 30. b4 {[%clk 0:00:29]}  Qb5 {[%clk 0:01:54]} 31. Qxb5 {[%clk 0:00:29]}  Bxb5 {[%clk 0:01:53]} 32. Rc1 {[%clk 0:00:21]}  e5 {[%clk 0:01:49]} 33. Rc5 {[%clk 0:00:21]}  Bd3 {[%clk 0:01:48]} 34. f4 {[%clk 0:00:17]}  exf3 {[%clk 0:01:47]} 35. gxf3 {[%clk 0:00:18]}  Ra8 {[%clk 0:01:43]} 36. Rc3 {[%clk 0:00:08]}  Ra1+ {[%clk 0:01:42]} 37. Kf2 {[%clk 0:00:08]}  Ra2+ {[%clk 0:01:42]} 38. Kg1 {[%clk 0:00:08]}  Be2 {[%clk 0:01:41]} 39. f4 {[%clk 0:00:08]}  e4 {[%clk 0:01:40]} 40. Rb3 {[%clk 0:00:06]}  Bb5 {[%clk 0:01:39]} 41. Bf2 {[%clk 0:00:04]}  h5 {[%clk 0:01:38]} 42. Kg2 {[%clk 0:00:04]}  Kf7 {[%clk 0:01:38]} 43. h4 {[%clk 0:00:04]}  Ke6 {[%clk 0:01:37]} 44. Kg3 {[%clk 0:00:04]}  Rd2 {[%clk 0:01:32]} 45. Rc3 {[%clk 0:00:04]}  Rb2 {[%clk 0:01:30]} 46. Rc5 {[%clk 0:00:04]}  Rxb4 {[%clk 0:01:29]} 47. Rc7 {[%clk 0:00:04]}  g6 {[%clk 0:01:27]} 48. Rg7 {[%clk 0:00:04]}  Kf5 {[%clk 0:01:27]} 49. Rc7 {[%clk 0:00:03]}  Rb1 {[%clk 0:01:21]} 50. Rc5+ {[%clk 0:00:03]}  Ke6 {[%clk 0:01:20]} 51. Rc7 {[%clk 0:00:03]}  Be2 {[%clk 0:01:19]} 52. Rc5 {[%clk 0:00:03]}  Bg4 {[%clk 0:01:18]} 53. Rc7 {[%clk 0:00:03]}  Rh1 {[%clk 0:01:17]} 54. Rc6+ {[%clk 0:00:03]}  Ke7 {[%clk 0:01:16]} 55. Rc7+ {[%clk 0:00:03]}  Kd6 {[%clk 0:01:16]} 56. Ra7 {[%clk 0:00:03]}  Rh3+ {[%clk 0:01:15]} 57. Kg2 {[%clk 0:00:04]}  Rf3 {[%clk 0:01:15]} 58. Ra6+ {[%clk 0:00:03]}  Ke7 {[%clk 0:01:15]} 59. Ra7+ {[%clk 0:00:04]}  Ke8 {[%clk 0:01:15]} 60. Ra8+ {[%clk 0:00:03]}  Kd7 {[%clk 0:01:15]} 61. Ra7+ {[%clk 0:00:04]}  Kc8 {[%clk 0:01:15]} 62. Ra8+ {[%clk 0:00:04]}  Kb7 {[%clk 0:01:14]} 63. Rf8 {[%clk 0:00:04]}  Bh3+ {[%clk 0:01:10]} 64. Kg1 {[%clk 0:00:04]}  Bf5 {[%clk 0:01:08]} 65. Rxf6 {[%clk 0:00:04]}  Kc7 {[%clk 0:01:07]} 66. Rf7+ {[%clk 0:00:05]}  Kd6 {[%clk 0:01:07]} 67. Ra7 {[%clk 0:00:05]}  Kc5 {[%clk 0:01:07]} 68. Ra5+ {[%clk 0:00:05]}  Kc4 {[%clk 0:01:07]} 69. Ra3 {[%clk 0:00:05]}  Kb4 {[%clk 0:01:06]} 70. Ra2 {[%clk 0:00:05]}  Kc3 {[%clk 0:01:06]} 71. Re2 {[%clk 0:00:05]}  Kd3 {[%clk 0:01:06]} 72. Ra2 {[%clk 0:00:05]}  Rh3 {[%clk 0:01:04]} 73. Kg2 {[%clk 0:00:04]}  Rf3 {[%clk 0:01:04]} 74. Ra3+ {[%clk 0:00:05]}  Kc2 {[%clk 0:01:04]} 75. Ra2+ {[%clk 0:00:05]}  Kb3 {[%clk 0:01:04]} 76. Ra1 {[%clk 0:00:05]}  Bh3+ {[%clk 0:01:02]} 77. Kg1 {[%clk 0:00:05]}  Be6 {[%clk 0:01:02]} 78. Ra6 {[%clk 0:00:05]}  Bf5 {[%clk 0:01:01]} 79. Rd6 {[%clk 0:00:05]}  Kc2 {[%clk 0:01:01]} 80. Rd8 {[%clk 0:00:05]}  Rh3 {[%clk 0:01:00]} 81. Kg2 {[%clk 0:00:05]}  Bg4 {[%clk 0:01:00]} 82. Rd6 {[%clk 0:00:05]}  Bf5 {[%clk 0:00:59]} 83. Rxg6 {[%clk 0:00:05]}  Bxg6 {[%clk 0:00:59]} 84. Kxh3 {[%clk 0:00:04]}  Bf5+ {[%clk 0:00:58]} 85. Kg2 {[%clk 0:00:04]}  Kd3 {[%clk 0:00:58]} 86. Kf1 {[%clk 0:00:04]}  Kd2 {[%clk 0:00:58]} 87. Kg2 {[%clk 0:00:04]}  Ke2 {[%clk 0:00:58]} 88. Bg1 {[%clk 0:00:04]}  Bg4 {[%clk 0:00:57]} 89. Bf2 {[%clk 0:00:04]}  Bf3+ {[%clk 0:00:56]} 90. Kg3 {[%clk 0:00:04]}  Kf1 {[%clk 0:00:56]} 91. f5 {[%clk 0:00:05]}  Bg4 {[%clk 0:00:56]} 92. f6 {[%clk 0:00:05]}  Be6 {[%clk 0:00:55]} 93. Kf4 {[%clk 0:00:02]}  Kxf2 {[%clk 0:00:54]} 94. Kxe4 {[%clk 0:00:02]}  Kg3 {[%clk 0:00:54]} 95. Ke5 {[%clk 0:00:02]}  Ba2 {[%clk 0:00:51]} 96. e4 {[%clk 0:00:02]}  Kxh4 {[%clk 0:00:50]} 97. Kf5 {[%clk 0:00:02]}  Kg3 {[%clk 0:00:40]} 98. e5 {[%clk 0:00:02]}  h4 {[%clk 0:00:37]} 99. e6 {[%clk 0:00:03]}  h3 {[%clk 0:00:35]} 100. f7 {[%clk 0:00:03]}  h2 {[%clk 0:00:35]} 101. f8=Q {[%clk 0:00:04]}  h1=Q {[%clk 0:00:35]} 102. Qg7+ {[%clk 0:00:04]}  Kh2 {[%clk 0:00:30]} 103. Qb2+ {[%clk 0:00:04]}  Qg2 {[%clk 0:00:30]} 104. Qxg2+ {[%clk 0:00:04]}  Kxg2 {[%clk 0:00:30]} 105. e7 {[%clk 0:00:04]}  Bf7 {[%clk 0:00:29]} 106. Kf6 {[%clk 0:00:05]}  Be8 {[%clk 0:00:29]} 107. Kg7 {[%clk 0:00:05]}  Bd7 {[%clk 0:00:29]} 108. Kf8 {[%clk 0:00:05]}  Bc6 {[%clk 0:00:29]} 109. e8=Q {[%clk 0:00:06]}  Bxe8 {[%clk 0:00:29]} 1/2-1/2


[Site "https://www.chess.com"]

[Event "Titled Tuesday Blitz February 22 Late 2022"]
[White "Yordanov, Nikolay Plamenov"]
[Black "Weetik, Vjacheslav"]
[WhiteFideId "2907445"]
[BlackFideId "4153472"]
[WhiteElo "2248"]
[BlackElo "2469"]
[Result "1-0"]
[Round "04"]
[TimeControl "180+1"]
[Date "2022.02.23"]
[WhiteClock "0:00:12"]
[BlackClock "0:00:07"]

1. d4 {[%clk 0:03:00]}  d5 {[%clk 0:02:58]} 2. Bf4 {[%clk 0:03:01]}  Nf6 {[%clk 0:02:54]} 3. e3 {[%clk 0:03:01]}  c5 {[%clk 0:02:54]} 4. c3 {[%clk 0:03:01]}  Nc6 {[%clk 0:02:55]} 5. Bd3 {[%clk 0:03:02]}  Qb6 {[%clk 0:02:49]} 6. b3 {[%clk 0:03:02]}  Bg4 {[%clk 0:02:38]} 7. Nf3 {[%clk 0:03:02]}  Nh5 {[%clk 0:02:31]} 8. Be5 {[%clk 0:02:48]}  f6 {[%clk 0:02:26]} 9. h3 {[%clk 0:02:41]}  Bxf3 {[%clk 0:02:12]} 10. Qxf3 {[%clk 0:02:39]}  g6 {[%clk 0:01:45]} 11. Bh2 {[%clk 0:02:37]}  O-O-O {[%clk 0:01:28]} 12. O-O {[%clk 0:02:30]}  e5 {[%clk 0:01:28]} 13. dxc5 {[%clk 0:02:05]}  Bxc5 {[%clk 0:01:27]} 14. b4 {[%clk 0:02:00]}  Bd6 {[%clk 0:01:19]} 15. Qe2 {[%clk 0:01:23]}  e4 {[%clk 0:01:14]} 16. Bb5 {[%clk 0:01:22]}  Bxh2+ {[%clk 0:01:13]} 17. Kxh2 {[%clk 0:01:23]}  Ne5 {[%clk 0:01:12]} 18. a4 {[%clk 0:01:16]}  f5 {[%clk 0:01:11]} 19. a5 {[%clk 0:01:16]}  Qc7 {[%clk 0:01:12]} 20. Kg1 {[%clk 0:01:05]}  f4 {[%clk 0:01:12]} 21. a6 {[%clk 0:01:00]}  b6 {[%clk 0:01:00]} 22. exf4 {[%clk 0:00:42]}  Nxf4 {[%clk 0:00:59]} 23. Qe3 {[%clk 0:00:42]}  Rhf8 {[%clk 0:00:47]} 24. Na3 {[%clk 0:00:34]}  Nf3+ {[%clk 0:00:30]} 25. gxf3 {[%clk 0:00:29]}  Nxh3+ {[%clk 0:00:29]} 26. Kh1 {[%clk 0:00:28]}  Rxf3 {[%clk 0:00:29]} 27. Qh6 {[%clk 0:00:24]}  Nxf2+ {[%clk 0:00:17]} 28. Rxf2 {[%clk 0:00:24]}  Rxf2 {[%clk 0:00:18]} 29. Bf1 {[%clk 0:00:20]}  Qg3 {[%clk 0:00:16]} 30. Qh3+ {[%clk 0:00:12]}  Qxh3+ {[%clk 0:00:15]} 31. Bxh3+ {[%clk 0:00:13]}  Kb8 {[%clk 0:00:15]} 32. Nb5 {[%clk 0:00:14]}  e3 {[%clk 0:00:15]} 33. Nd4 {[%clk 0:00:14]}  Re8 {[%clk 0:00:13]} 34. Re1 {[%clk 0:00:14]}  Re4 {[%clk 0:00:11]} 35. Nc6+ {[%clk 0:00:14]}  Kc7 {[%clk 0:00:06]} 36. Nxa7 {[%clk 0:00:14]}  Kb8 {[%clk 0:00:02]} 37. Nb5 {[%clk 0:00:14]}  Rb2 {[%clk 0:00:02]} 38. a7+ {[%clk 0:00:14]}  Kb7 {[%clk 0:00:02]} 39. Bd7 {[%clk 0:00:13]}  Ra2 {[%clk 0:00:03]} 40. Nd6+ {[%clk 0:00:11]}  Kc7 {[%clk 0:00:02]} 41. Nxe4 {[%clk 0:00:12]}  Kxd7 {[%clk 0:00:03]} 42. Ng5 {[%clk 0:00:11]}  e2 {[%clk 0:00:02]} 43. Nf3 {[%clk 0:00:10]}  Rxa7 {[%clk 0:00:03]} 44. Rxe2 {[%clk 0:00:10]}  Ra3 {[%clk 0:00:04]} 45. Re3 {[%clk 0:00:11]}  Kd6 {[%clk 0:00:04]} 46. Kg2 {[%clk 0:00:11]}  h6 {[%clk 0:00:04]} 47. Nd4 {[%clk 0:00:12]}  Kd7 {[%clk 0:00:04]} 48. Rf3 {[%clk 0:00:11]}  g5 {[%clk 0:00:04]} 49. Kg3 {[%clk 0:00:12]}  Ra1 {[%clk 0:00:03]} 50. Kg4 {[%clk 0:00:12]}  Rg1+ {[%clk 0:00:03]} 51. Kh5 {[%clk 0:00:11]}  g4 {[%clk 0:00:04]} 52. Rf7+ {[%clk 0:00:11]}  Kd6 {[%clk 0:00:04]} 53. Rf6+ {[%clk 0:00:12]}  Ke5 {[%clk 0:00:04]} 54. Re6+ {[%clk 0:00:12]}  Kf4 {[%clk 0:00:04]} 55. Ne2+ {[%clk 0:00:12]}  Kf5 {[%clk 0:00:04]} 56. Nxg1 {[%clk 0:00:12]}  Kxe6 {[%clk 0:00:05]} 57. Kxg4 {[%clk 0:00:13]}  d4 {[%clk 0:00:05]} 58. cxd4 {[%clk 0:00:12]}  Kd5 {[%clk 0:00:05]} 59. Nf3 {[%clk 0:00:13]}  Kc4 {[%clk 0:00:05]} 60. Kf5 {[%clk 0:00:12]}  h5 {[%clk 0:00:05]} 61. Ke5 {[%clk 0:00:11]}  Kxb4 {[%clk 0:00:06]} 62. d5 {[%clk 0:00:11]}  Kc5 {[%clk 0:00:06]} 63. d6 {[%clk 0:00:12]}  Kc6 {[%clk 0:00:07]} 64. Ke6 {[%clk 0:00:12]} 1-0


[Site "https://www.chess.com"]

[Event "Titled Tuesday Blitz February 22 Late 2022"]
[White "Zlatin, Alexander"]
[Black "Aradhya, Garg"]
[WhiteFideId "2810549"]
[BlackFideId "25006746"]
[WhiteElo "2228"]
[BlackElo "2169"]
[Result "1/2-1/2"]
[Round "04"]
[TimeControl "180+1"]
[Date "2022.02.23"]
[WhiteClock "0:01:10"]
[BlackClock "0:01:44"]

1. e4 {[%clk 0:02:59]}  e5 {[%clk 0:02:59]} 2. Nf3 {[%clk 0:02:57]}  Nc6 {[%clk 0:03:00]} 3. Bc4 {[%clk 0:02:57]}  Nf6 {[%clk 0:02:59]} 4. Nc3 {[%clk 0:02:55]}  Nxe4 {[%clk 0:02:58]} 5. Nxe4 {[%clk 0:02:53]}  d5 {[%clk 0:02:58]} 6. Bd3 {[%clk 0:02:53]}  dxe4 {[%clk 0:02:58]} 7. Bxe4 {[%clk 0:02:54]}  Bd6 {[%clk 0:02:57]} 8. O-O {[%clk 0:02:54]}  O-O {[%clk 0:02:57]} 9. d3 {[%clk 0:02:49]}  Bg4 {[%clk 0:02:51]} 10. Re1 {[%clk 0:02:48]}  Qd7 {[%clk 0:02:22]} 11. h3 {[%clk 0:02:31]}  Bxf3 {[%clk 0:02:20]} 12. Qxf3 {[%clk 0:02:22]}  Nd4 {[%clk 0:02:20]} 13. Qd1 {[%clk 0:02:19]}  c6 {[%clk 0:02:20]} 14. c3 {[%clk 0:02:17]}  Ne6 {[%clk 0:02:17]} 15. Bf5 {[%clk 0:01:55]}  Rfe8 {[%clk 0:02:15]} 16. Qb3 {[%clk 0:01:52]}  g6 {[%clk 0:02:05]} 17. Bxe6 {[%clk 0:01:50]}  Rxe6 {[%clk 0:02:06]} 18. Be3 {[%clk 0:01:45]}  b6 {[%clk 0:02:03]} 19. d4 {[%clk 0:01:46]}  exd4 {[%clk 0:01:58]} 20. Bxd4 {[%clk 0:01:42]}  Rae8 {[%clk 0:01:58]} 21. Rxe6 {[%clk 0:01:39]}  Qxe6 {[%clk 0:01:59]} 22. Qxe6 {[%clk 0:01:37]}  Rxe6 {[%clk 0:01:59]} 23. Kf1 {[%clk 0:01:36]}  f5 {[%clk 0:01:59]} 24. Re1 {[%clk 0:01:36]}  Kf7 {[%clk 0:01:58]} 25. Rxe6 {[%clk 0:01:35]}  Kxe6 {[%clk 0:01:59]} 26. Ke2 {[%clk 0:01:36]}  Kd5 {[%clk 0:01:59]} 27. Kd3 {[%clk 0:01:34]}  c5 {[%clk 0:01:58]} 28. c4+ {[%clk 0:01:34]}  Ke6 {[%clk 0:01:58]} 29. Bc3 {[%clk 0:01:29]}  Be5 {[%clk 0:01:56]} 30. g3 {[%clk 0:01:21]}  f4 {[%clk 0:01:51]} 31. g4 {[%clk 0:01:14]}  Bxc3 {[%clk 0:01:50]} 32. Kxc3 {[%clk 0:01:14]}  Ke5 {[%clk 0:01:49]} 33. f3 {[%clk 0:01:12]}  h5 {[%clk 0:01:46]} 34. gxh5 {[%clk 0:01:08]}  gxh5 {[%clk 0:01:46]} 35. h4 {[%clk 0:01:09]}  Kf5 {[%clk 0:01:43]} 36. Kd3 {[%clk 0:01:08]}  Ke5 {[%clk 0:01:43]} 37. Kc3 {[%clk 0:01:09]}  Kf5 {[%clk 0:01:43]} 38. Kd3 {[%clk 0:01:09]}  Ke5 {[%clk 0:01:44]} 39. Kc3 {[%clk 0:01:10]} 1/2-1/2


[Site "https://www.chess.com"]

[Event "Titled Tuesday Blitz February 22 Late 2022"]
[White "Zong, Davis"]
[Black "Hjartarson, Johann"]
[WhiteFideId "30903955"]
[BlackFideId "2300044"]
[WhiteElo "2061"]
[BlackElo "2484"]
[Result "0-1"]
[Round "04"]
[TimeControl "180+1"]
[Date "2022.02.23"]
[WhiteClock "0:00:03"]
[BlackClock "0:00:26"]

1. e4 {[%clk 0:03:00]}  g6 {[%clk 0:02:59]} 2. d4 {[%clk 0:03:01]}  Bg7 {[%clk 0:03:00]} 3. Nc3 {[%clk 0:03:01]}  d6 {[%clk 0:03:00]} 4. Be3 {[%clk 0:03:01]}  a6 {[%clk 0:02:59]} 5. Qd2 {[%clk 0:02:57]}  b5 {[%clk 0:02:58]} 6. a3 {[%clk 0:02:56]}  Nd7 {[%clk 0:02:57]} 7. O-O-O {[%clk 0:02:55]}  Bb7 {[%clk 0:02:55]} 8. h4 {[%clk 0:02:54]}  Ngf6 {[%clk 0:02:51]} 9. f3 {[%clk 0:02:54]}  h6 {[%clk 0:02:49]} 10. Nge2 {[%clk 0:02:41]}  Nb6 {[%clk 0:02:47]} 11. Nf4 {[%clk 0:02:38]}  Nfd7 {[%clk 0:02:40]} 12. g4 {[%clk 0:02:21]}  c5 {[%clk 0:02:33]} 13. Rg1 {[%clk 0:02:17]}  cxd4 {[%clk 0:02:23]} 14. Bxd4 {[%clk 0:02:17]}  Bxd4 {[%clk 0:02:21]} 15. Qxd4 {[%clk 0:02:15]}  e5 {[%clk 0:02:17]} 16. Qxd6 {[%clk 0:02:12]}  exf4 {[%clk 0:02:17]} 17. Nxb5 {[%clk 0:02:02]}  axb5 {[%clk 0:02:14]} 18. Bxb5 {[%clk 0:02:03]}  Rh7 {[%clk 0:01:34]} 19. e5 {[%clk 0:01:41]}  Ra5 {[%clk 0:01:26]} 20. e6 {[%clk 0:00:56]}  fxe6 {[%clk 0:01:23]} 21. Qxe6+ {[%clk 0:00:53]}  Kf8 {[%clk 0:01:21]} 22. Qxg6 {[%clk 0:00:16]}  Rxb5 {[%clk 0:01:13]} 23. Qxh7 {[%clk 0:00:14]}  Qf6 {[%clk 0:01:13]} 24. c3 {[%clk 0:00:08]}  Rd5 {[%clk 0:01:06]} 25. Rxd5 {[%clk 0:00:06]}  Bxd5 {[%clk 0:01:06]} 26. g5 {[%clk 0:00:06]}  hxg5 {[%clk 0:01:01]} 27. hxg5 {[%clk 0:00:07]}  Qg7 {[%clk 0:00:59]} 28. Qf5+ {[%clk 0:00:07]}  Qf7 {[%clk 0:00:58]} 29. Qd3 {[%clk 0:00:06]}  Kg8 {[%clk 0:00:55]} 30. g6 {[%clk 0:00:05]}  Qe6 {[%clk 0:00:54]} 31. Qd4 {[%clk 0:00:03]}  Qe5 {[%clk 0:00:42]} 32. Qxe5 {[%clk 0:00:04]}  Nxe5 {[%clk 0:00:42]} 33. Rg5 {[%clk 0:00:03]}  Nbd7 {[%clk 0:00:39]} 34. Rf5 {[%clk 0:00:03]}  Be6 {[%clk 0:00:39]} 35. Rxf4 {[%clk 0:00:03]}  Nd3+ {[%clk 0:00:39]} 36. Kd2 {[%clk 0:00:04]}  Nxf4 {[%clk 0:00:39]} 37. Ke3 {[%clk 0:00:04]}  Nxg6 {[%clk 0:00:39]} 38. a4 {[%clk 0:00:05]}  Kf7 {[%clk 0:00:36]} 39. Kd4 {[%clk 0:00:05]}  Ke7 {[%clk 0:00:36]} 40. a5 {[%clk 0:00:05]}  Nge5 {[%clk 0:00:33]} 41. a6 {[%clk 0:00:03]}  Kd6 {[%clk 0:00:32]} 42. f4 {[%clk 0:00:03]}  Nc6+ {[%clk 0:00:31]} 43. Ke3 {[%clk 0:00:03]}  Bc4 {[%clk 0:00:29]} 44. a7 {[%clk 0:00:02]}  Nxa7 {[%clk 0:00:28]} 45. Kd4 {[%clk 0:00:03]}  Be6 {[%clk 0:00:28]} 46. c4 {[%clk 0:00:03]}  Nc6+ {[%clk 0:00:27]} 47. Kc3 {[%clk 0:00:03]}  Kc5 {[%clk 0:00:27]} 48. b4+ {[%clk 0:00:03]}  Nxb4 {[%clk 0:00:26]} 0-1


[Site "https://www.chess.com"]